fUSD/lending_fUSD_20250522
["ID","MTS","AMOUNT","RATE_DAILY","PERIOD"]
[362004737,1747933855746,-420.0,0.0003315,5]
[362004738,1747933855756,-420.0,0.0003315,5]
[362004739,1747933855765,-495.88,0.0003315,5]
[362004740,1747933855774,-420.0,0.0003315,5]
[362004741,1747933855784,-420.0,0.0003315,5]
[362004742,1747933855794,-459.41,0.0003315,5]
[362004743,1747933855803,-420.0,0.0003315,5]
[362004744,1747933855812,-420.0,0.0003315,5]
[362004745,1747933855823,-539.96,0.0003315,5]
[362004746,1747933855832,-420.0,0.0003315,5]
[362004747,1747933855842,-420.0,0.0003315,5]
[362004748,1747933855851,-204.05384605,0.0003315,5]
[362004749,1747933855860,-420.0,0.0003315,5]
[362004750,1747933855869,-500.0,0.0003315,5]
[362004751,1747933855878,-525.35,0.0003315,5]
[362004752,1747933855888,-420.0,0.0003315,5]
[362004753,1747933855897,-510.6,0.0003315,5]
[362004754,1747933855906,-420.0,0.0003315,5]
[362004755,1747933855915,-420.0,0.0003315,5]
[362004756,1747933855924,-420.0,0.0003315,5]
[362004757,1747933855934,-442.76,0.0003315,5]
[362004758,1747933855943,-420.0,0.0003315,5]
[362004759,1747933855952,-420.0,0.0003315,5]
[362004760,1747933855961,-420.0,0.0003315,5]
[362004761,1747933855971,-494.37,0.0003315,5]
[362004762,1747933855980,-420.0,0.0003315,5]
[362004763,1747933855989,-420.0,0.0003315,5]
[362004764,1747933855998,-420.0,0.0003315,5]
[362004765,1747933856008,-420.0,0.0003315,5]
[362004766,1747933856017,-420.0,0.0003315,5]
[362004767,1747933856026,-420.0,0.0003315,5]
[362004768,1747933856035,-809.26,0.0003315,5]
[362004769,1747933856044,-420.0,0.0003315,5]
[362004770,1747933856053,-420.0,0.0003315,5]
[362004771,1747933856062,-420.0,0.0003315,5]
[362004772,1747933856072,-420.0,0.0003315,5]
[362004773,1747933856081,-420.0,0.0003315,5]
[362004774,1747933856090,-769.8,0.0003315,5]
[362004775,1747933856099,-420.0,0.0003315,5]
[362004776,1747933856108,-977.72,0.0003315,5]
[362004777,1747933856118,-460.19,0.0003315,5]
[362004778,1747933856128,-420.0,0.0003315,5]
[362004779,1747933856137,-151.0,0.0003315,7]
[362004780,1747933856147,-151.0,0.0003315,7]
[362004781,1747933856156,-151.0,0.0003315,7]
[362004782,1747933856165,-151.0,0.0003315,7]
[362004783,1747933856174,-265.57419784,0.0003315,5]
[362004784,1747933856183,-420.0,0.0003315,5]
[362004785,1747933856192,-466.15,0.0003315,5]
[362004786,1747933856201,-420.0,0.0003315,5]
[362004787,1747933856211,-845.24,0.0003315,5]
[362004788,1747933856220,-420.0,0.0003315,5]
[362004789,1747933856230,-734.6,0.0003315,5]
[362004790,1747933856239,-420.0,0.0003315,5]
[362004791,1747933856248,-420.0,0.0003315,5]
[362004792,1747933856257,-638.11,0.0003315,5]
[362004793,1747933856266,-508.6,0.0003315,5]
[362004794,1747933856275,-465.09,0.0003315,5]
[362004795,1747933856284,-1581.76,0.0003315,5]
[362004796,1747933856294,-420.0,0.0003315,5]
[362004797,1747933856302,-437.18,0.0003315,5]
[362004798,1747933856312,-420.0,0.0003315,5]
[362004799,1747933856321,-420.0,0.0003315,5]
[362004800,1747933856332,-420.0,0.0003315,5]
[362004801,1747933856341,-420.0,0.0003315,5]
[362004802,1747933856350,-420.0,0.0003315,5]
[362004803,1747933856359,-870.21,0.0003315,5]
[362004804,1747933856368,-789.17,0.0003315,5]
[362004805,1747933856378,-420.0,0.0003315,5]
[362004806,1747933856387,-420.0,0.0003315,5]
[362004807,1747933856529,-649.66,0.0003315,5]
[362004808,1747933856540,-595.12,0.0003315,5]
[362004809,1747933856550,-420.0,0.0003315,5]
[362004810,1747933856560,-509.16,0.0003315,5]
[362004811,1747933856569,-420.0,0.0003315,5]
[362004812,1747933856579,-433.89,0.0003315,5]
[362004813,1747933856589,-420.0,0.0003315,5]
[362004814,1747933856599,-420.0,0.0003315,5]
[362004815,1747933856608,-420.0,0.0003315,5]
[362004816,1747933856617,-420.0,0.0003315,5]
[362004817,1747933856627,-420.0,0.0003315,5]
[362004818,1747933856637,-420.0,0.0003315,5]
[362004819,1747933856646,-498.61,0.0003315,5]
[362004820,1747933856656,-580.11,0.0003315,5]
[362004821,1747933856666,-573.53,0.0003315,5]
[362004822,1747933856676,-420.0,0.0003315,5]
[362004823,1747933856686,-1000.0,0.0003315,5]
[362004824,1747933856697,-420.0,0.0003315,5]
[362004825,1747933856706,-420.0,0.0003315,5]
[362004826,1747933856716,-608.49,0.0003315,5]
[362004827,1747933856726,-420.0,0.0003315,5]
[362004828,1747933856742,-420.0,0.0003315,5]
[362004829,1747933856752,-425.68,0.0003315,5]
[362004830,1747933856762,-420.0,0.0003315,5]
[362004831,1747933856772,-481.58,0.0003315,5]
[362004832,1747933856782,-1071.99,0.0003315,5]
[362004833,1747933856791,-730.27,0.0003315,5]
[362004834,1747933856801,-420.0,0.0003315,5]
[362004835,1747933856811,-420.0,0.0003315,5]
[362004836,1747933856820,-420.0,0.0003315,5]
[362004837,1747933856830,-420.0,0.0003315,5]
[362004838,1747933856839,-420.0,0.0003315,5]
[362004839,1747933856849,-420.0,0.0003315,5]
[362004840,1747933856859,-420.0,0.0003315,5]
[362004841,1747933856868,-451.52,0.0003315,5]
[362004842,1747933856878,-4192.77,0.0003315,5]
[362004843,1747933856888,-269.44200473,0.0003315,5]
[362004844,1747933856898,-515.3,0.0003315,5]
[362004845,1747933856908,-420.0,0.0003315,5]
[362004846,1747933856917,-420.0,0.0003315,5]
[362004847,1747933856927,-420.0,0.0003315,5]
[362004848,1747933856937,-420.0,0.0003315,5]
[362004849,1747933856946,-420.0,0.0003315,5]
[362004850,1747933856956,-709.41,0.0003315,5]
[362004851,1747933856966,-510.74,0.0003315,5]
[362004852,1747933856976,-2867.71,0.0003315,5]
[362004853,1747933856985,-688.79,0.0003315,5]
[362004854,1747933856995,-420.0,0.0003315,5]
[362004855,1747933857005,-576.22,0.0003315,5]
[362004856,1747933857015,-478.42,0.0003315,5]
[362004857,1747933857024,-420.0,0.0003315,5]
[362004858,1747933857034,-566.07,0.0003315,5]
[362004859,1747933857044,-420.0,0.0003315,5]
[362004860,1747933857054,-636.56,0.0003315,5]
[362004861,1747933857064,-701.85,0.0003315,5]
[362004862,1747933857074,-420.0,0.0003315,5]
[362004863,1747933857083,-776.15,0.0003315,5]
[362004864,1747933857092,-420.0,0.0003315,5]
[362004865,1747933857102,-420.0,0.0003315,5]
[362004866,1747933857111,-719.59,0.0003315,5]
[362004867,1747933857121,-5440.18,0.0003315,5]
[362004868,1747933857130,-420.0,0.0003315,5]
[362004869,1747933857140,-420.0,0.0003315,5]
[362004870,1747933857150,-420.0,0.0003315,5]
[362004871,1747933857160,-2209.94,0.0003315,5]
[362004872,1747933857170,-420.0,0.0003315,5]
[362004873,1747933857180,-479.84551192,0.0003315,5]
[362004874,1747933857193,-420.0,0.0003315,5]
[362004875,1747933857202,-420.0,0.0003315,5]
[362004876,1747933857213,-761.94,0.0003315,5]
[362004877,1747933857223,-6144.99,0.0003315,5]
[362004878,1747933857232,-151.0,0.0003315,7]
[362004879,1747933857242,-771.06,0.0003315,5]
[362004880,1747933857252,-151.0,0.0003315,7]
[362004881,1747933857262,-420.0,0.0003315,5]
[362004882,1747933857271,-151.0,0.0003315,7]
[362004883,1747933857281,-151.0,0.0003315,7]
[362004884,1747933857291,-689.72,0.0003315,5]
[362004885,1747933857300,-151.0,0.0003315,7]
[362004886,1747933857310,-420.0,0.0003315,5]
[362004887,1747933857320,-151.0,0.0003315,7]
[362004888,1747933857330,-557.56,0.0003315,5]
[362004889,1747933857340,-151.0,0.0003315,7]
[362004890,1747933857349,-284.011752,0.0003315,7]
[362004891,1747933857359,-698.33,0.0003315,5]
[362004892,1747933857368,-681.1,0.0003315,5]
[362004893,1747933857377,-420.0,0.0003315,5]
[362004894,1747933857387,-951.74,0.0003315,5]
[362004895,1747933857397,-420.0,0.0003315,5]
[362004896,1747933857407,-420.0,0.0003315,5]
[362004897,1747933857418,-1002.07,0.0003315,5]
[362004898,1747933857428,-420.0,0.0003315,5]
[362004899,1747933857437,-420.0,0.0003315,5]
[362004900,1747933857447,-2150.16,0.0003315,5]
[362004901,1747933857458,-420.0,0.0003315,5]
[362004902,1747933857468,-420.0,0.0003315,5]
[362004903,1747933857481,-769.67,0.0003315,5]
[362004904,1747933857491,-1224.35,0.0003315,5]
[362004905,1747933857501,-728.12,0.0003315,5]
[362004906,1747933857511,-941.44,0.0003315,5]
[362004907,1747933857520,-1921.29,0.0003315,5]
[362004908,1747933857530,-420.0,0.0003315,5]
[362004909,1747933857540,-420.0,0.0003315,5]
[362004910,1747933857550,-570.73,0.0003315,5]
[362004911,1747933857560,-420.0,0.0003315,5]
[362004912,1747933857570,-625.47,0.0003315,5]
[362004913,1747933857579,-420.0,0.0003315,5]
[362004914,1747933857589,-420.0,0.0003315,5]
[362004915,1747933857599,-420.0,0.0003315,5]
[362004916,1747933857608,-420.0,0.0003315,5]
[362004917,1747933857618,-420.0,0.0003315,5]
[362004918,1747933857627,-3607.16,0.0003315,5]
[362004919,1747933857638,-981.4,0.0003315,5]
[362004920,1747933857647,-420.0,0.0003315,5]
[362004921,1747933857656,-420.0,0.0003315,5]
[362004922,1747933857666,-1224.05,0.0003315,5]
[362004923,1747933857676,-420.0,0.0003315,5]
[362004924,1747933857686,-420.0,0.0003315,5]
[362004925,1747933857696,-769.81,0.0003315,5]
[362004926,1747933857706,-420.0,0.0003315,5]
[362004927,1747933857717,-420.0,0.0003315,5]
[362004928,1747933857727,-420.0,0.0003315,5]
[362004929,1747933857741,-537.06,0.0003315,5]
[362004930,1747933857750,-4553.04,0.0003315,5]
[362004931,1747933857760,-420.0,0.0003315,5]
[362004932,1747933857770,-1136.33,0.0003315,5]
[362004933,1747933857780,-602.44,0.0003315,5]
[362004934,1747933857789,-420.0,0.0003315,5]
[362004935,1747933857799,-682.83,0.0003315,5]
[362004936,1747933857809,-545.53,0.0003315,5]
[362004937,1747933857819,-617.12,0.0003315,5]
[362004938,1747933857828,-420.0,0.0003315,5]
[362004939,1747933857838,-578.41,0.0003315,5]
[362004940,1747933857848,-420.0,0.0003315,5]
[362004941,1747933857857,-20351.89,0.0003315,5]
[362004942,1747933857867,-476.43,0.0003315,5]
[362004943,1747933857876,-477.04,0.0003315,5]
[362004944,1747933857886,-420.0,0.0003315,5]
[362004945,1747933857896,-490.47,0.0003315,5]
[362004946,1747933857905,-420.0,0.0003315,5]
[362004947,1747933857915,-420.0,0.0003315,5]
[362004948,1747933857924,-173.64198756,0.0003315,5]
[362004949,1747933857934,-420.0,0.0003315,5]
[362004950,1747933857944,-420.0,0.0003315,5]
[362004951,1747933857954,-420.0,0.0003315,5]
[362004952,1747933857963,-811.02,0.0003315,5]
[362004953,1747933857974,-1689.12,0.0003315,5]
[362004954,1747933857984,-1378.26,0.0003315,5]
[362004955,1747933857994,-505.25,0.0003315,5]
[362004956,1747933858004,-898.43,0.0003315,5]
[362004957,1747933858014,-420.0,0.0003315,5]
[362004958,1747933858023,-997.18,0.0003315,5]
[362004959,1747933858033,-420.0,0.0003315,5]
[362004960,1747933858043,-420.0,0.0003315,5]
[362004961,1747933858053,-660.15,0.0003315,5]
[362004962,1747933858062,-420.0,0.0003315,5]
[362004963,1747933858072,-703.8,0.0003315,5]
[362004964,1747933858082,-151.0,0.0003315,7]
[362004965,1747933858091,-420.0,0.0003315,5]
[362004966,1747933858101,-151.0,0.0003315,7]
[362004967,1747933858110,-151.0,0.0003315,7]
[362004968,1747933858120,-550.31,0.0003315,5]
[362004969,1747933858129,-449.16,0.0003315,5]
[362004970,1747933858139,-550.58,0.0003315,5]
[362004971,1747933858150,-420.0,0.0003315,5]
[362004972,1747933858161,-472.36,0.0003315,5]
[362004973,1747933858171,-822.44,0.0003315,5]
[362004974,1747933858181,-716.72,0.0003315,5]
[362004975,1747933858190,-420.0,0.0003315,5]
[362004976,1747933858200,-420.0,0.0003315,5]
[362004977,1747933858209,-420.0,0.0003315,5]
[362004978,1747933858218,-1008.83,0.0003315,5]
[362004979,1747933858227,-867.21,0.0003315,5]
[362004980,1747933858236,-469.62,0.0003315,5]
[362004981,1747933858247,-745.26,0.0003315,5]
[362004982,1747933858256,-652.81,0.0003315,5]
[362004983,1747933858266,-420.0,0.0003315,5]
[362004984,1747933858277,-420.0,0.0003315,5]
[362004985,1747933858286,-420.0,0.0003315,5]
[362004986,1747933858296,-420.0,0.0003315,5]
[362004987,1747933858305,-420.0,0.0003315,5]
[362004988,1747933858315,-441.89,0.0003315,5]
[362004989,1747933858324,-420.0,0.0003315,5]
[362004990,1747933858334,-420.0,0.0003315,5]
[362004991,1747933858345,-1035.38,0.0003315,5]
[362004992,1747933858355,-420.0,0.0003315,5]
[362004993,1747933858365,-420.0,0.0003315,5]
[362004994,1747933858375,-420.0,0.0003315,5]
[362004995,1747933858385,-916.68,0.0003315,5]
[362004996,1747933858394,-1558.06,0.0003315,5]
[362004997,1747933858404,-420.0,0.0003315,5]
[362004998,1747933858413,-420.0,0.0003315,5]
[362004999,1747933858423,-420.0,0.0003315,5]
[362005000,1747933858433,-420.0,0.0003315,5]
[362005001,1747933858443,-9657.78,0.0003315,5]
[362005002,1747933858452,-856.88,0.0003315,5]
[362005003,1747933858462,-420.0,0.0003315,5]
[362005004,1747933858472,-420.0,0.0003315,5]
[362005005,1747933858482,-420.0,0.0003315,5]
[362005006,1747933858491,-1492.64,0.0003315,2]
[362005007,1747933858500,-420.0,0.0003315,5]
[362005008,1747933858509,-420.0,0.0003315,5]
[362005009,1747933858519,-852.89,0.0003315,5]
[362005010,1747933858528,-989.21,0.0003315,5]
[362005011,1747933858537,-662.91,0.0003315,5]
[362005012,1747933858547,-420.0,0.0003315,5]
[362005013,1747933858556,-482.81,0.0003315,5]
[362005014,1747933858565,-712.38,0.0003315,5]
[362005015,1747933858574,-420.0,0.0003315,5]
[362005016,1747933858584,-852.65,0.0003315,5]
[362005017,1747933858593,-420.0,0.0003315,5]
[362005018,1747933858603,-689.38,0.0003315,5]
[362005019,1747933858613,-420.0,0.0003315,5]
[362005020,1747933858623,-944.19,0.0003315,5]
[362005021,1747933858632,-164.8806859,0.0003315,5]
[362005022,1747933858642,-420.0,0.0003315,5]
[362005023,1747933858952,-763.73,0.0003315,5]
[362005024,1747933858970,-420.0,0.0003315,5]
[362005025,1747933858980,-420.0,0.0003315,5]
[362005026,1747933858991,-682.05,0.0003315,5]
[362005027,1747933859000,-420.0,0.0003315,5]
[362005028,1747933859009,-508.79,0.0003315,5]
[362005029,1747933859019,-420.0,0.0003315,5]
[362005030,1747933859028,-1132.56,0.0003315,5]
[362005031,1747933859038,-420.0,0.0003315,5]
[362005032,1747933859047,-420.0,0.0003315,5]
[362005033,1747933859057,-7060.32,0.0003315,2]
[362005034,1747933859067,-420.0,0.0003315,5]
[362005035,1747933859077,-587.53,0.0003315,5]
[362005036,1747933859087,-420.0,0.0003315,5]
[362005037,1747933859096,-420.0,0.0003315,5]
[362005038,1747933859106,-538.68,0.0003315,5]
[362005039,1747933859115,-1684.49,0.0003315,5]
[362005040,1747933859124,-2664.69,0.0003315,5]
[362005041,1747933859134,-472.67,0.0003315,5]
[362005042,1747933859143,-420.0,0.0003315,5]
[362005043,1747933859153,-1992.63,0.0003315,5]
[362005044,1747933859162,-420.0,0.0003315,5]
[362005045,1747933859172,-834.06,0.0003315,5]
[362005046,1747933859182,-760.49,0.0003315,5]
[362005047,1747933859191,-420.0,0.0003315,5]
[362005048,1747933859201,-695.29,0.0003315,5]
[362005049,1747933859210,-420.0,0.0003315,5]
[362005050,1747933859220,-487.94,0.0003315,5]
[362005051,1747933859229,-420.0,0.0003315,5]
[362005052,1747933859238,-3002.7,0.0003315,5]
[362005053,1747933859247,-420.0,0.0003315,5]
[362005054,1747933859257,-714.9,0.0003315,5]
[362005055,1747933859266,-420.0,0.0003315,5]
[362005056,1747933859276,-420.0,0.0003315,5]
[362005057,1747933859285,-420.0,0.0003315,5]
[362005058,1747933859294,-420.0,0.0003315,5]
[362005059,1747933859303,-926.84,0.0003315,5]
[362005060,1747933859313,-420.0,0.0003315,5]
[362005061,1747933859322,-420.0,0.0003315,5]
[362005062,1747933859331,-393.64279954,0.0003315,5]
[362005063,1747933859340,-1535.61,0.0003315,5]
[362005064,1747933859350,-1008.31,0.0003315,5]
[362005065,1747933859359,-420.0,0.0003315,5]
[362005066,1747933859368,-790.41,0.0003315,5]
[362005067,1747933859378,-420.0,0.0003315,5]
[362005068,1747933859387,-420.0,0.0003315,5]
[362005069,1747933859396,-420.0,0.0003315,5]
[362005070,1747933859406,-420.0,0.0003315,5]
[362005071,1747933859415,-498.17,0.0003315,5]
[362005072,1747933859424,-420.0,0.0003315,5]
[362005073,1747933859434,-420.0,0.0003315,5]
[362005074,1747933859443,-420.0,0.0003315,5]
[362005075,1747933859452,-762.76,0.0003315,5]
[362005076,1747933859462,-803.17,0.0003315,5]
[362005077,1747933859471,-671.75,0.0003315,5]
[362005078,1747933859480,-420.0,0.0003315,5]
[362005079,1747933859490,-420.0,0.0003315,5]
[362005080,1747933859499,-496.74,0.0003315,5]
[362005081,1747933859509,-990.41,0.0003315,5]
[362005082,1747933859518,-420.0,0.0003315,5]
[362005083,1747933859528,-611.86,0.0003315,5]
[362005084,1747933859538,-603.63,0.0003315,5]
[362005085,1747933859547,-497.27,0.0003315,5]
[362005086,1747933859557,-420.0,0.0003315,5]
[362005087,1747933859566,-420.0,0.0003315,5]
[362005088,1747933859575,-353.46,0.00033165,2]
[362005089,1747933859583,-500.0,0.00033173,5]
[362005090,1747933859592,-500.0,0.00033173,5]
[362005091,1747933859601,-500.0,0.00033173,5]
[362005092,1747933859610,-500.0,0.00033173,5]
[362005093,1747933859619,-500.0,0.00033173,5]
[362005094,1747933859628,-500.0,0.00033173,5]
[362005095,1747933859637,-500.0,0.00033173,5]
[362005096,1747933859645,-500.0,0.00033173,5]
[362005097,1747933859654,-151.0,0.00033173,7]
[362005098,1747933859663,-157.805768,0.00033173,7]
[362005099,1747933859672,-285.53,0.00033173,2]
[362005100,1747933859681,-200.0,0.00033205,2]
[362005101,1747933859690,-2169.0,0.00033397,2]
[362005102,1747933859700,-237.0,0.000334,2]
[362005103,1747933859708,-375.0,0.000334,2]
[362005104,1747933859716,-381.0,0.000334,2]
[362005105,1747933859726,-420.0,0.00033423,5]
[362005106,1747933859738,-151.0,0.00033423,7]
[362005107,1747933859748,-151.0,0.00033423,7]
[362005108,1747933859757,-1000.0,0.00033423,2]
[362005109,1747933859767,-500.0,0.00033423,5]
[362005110,1747933859778,-151.0,0.00033424,7]
[362005111,1747933859788,-151.0,0.00033424,7]
[362005112,1747933859797,-235.488471,0.00033424,7]
[362005113,1747933859807,-152.959474,0.00033424,5]
[362005114,1747933859816,-420.0,0.00033424,5]
[362005115,1747933859826,-420.0,0.00033424,5]
[362005116,1747933859835,-420.0,0.00033424,5]
[362005117,1747933859845,-151.0,0.00033424,7]
[362005118,1747933859856,-151.0,0.00033424,7]
[362005119,1747933859867,-151.0,0.00033424,7]
[362005120,1747933859877,-420.0,0.00033424,5]
[362005121,1747933859886,-420.0,0.00033424,5]
[362005122,1747933859896,-420.0,0.00033424,5]
[362005123,1747933859905,-617.84,0.00033424,5]
[362005124,1747933859915,-557.43,0.00033424,5]
[362005125,1747933859924,-420.0,0.00033424,5]
[362005126,1747933859934,-420.0,0.00033424,5]
[362005127,1747933859944,-433.93,0.00033424,5]
[362005128,1747933859953,-154.56785725,0.00033424,5]
[362005129,1747933859963,-420.0,0.00033424,5]
[362005130,1747933859973,-468.52,0.00033424,5]
[362005131,1747933859983,-420.0,0.00033424,5]
[362005132,1747933859993,-420.0,0.00033424,5]
[362005133,1747933860003,-420.0,0.00033424,5]
[362005134,1747933860012,-420.0,0.00033424,5]
[362005135,1747933860022,-420.0,0.00033424,5]
[362005136,1747933860031,-288.35693521,0.00033424,5]
[362005137,1747933860041,-420.0,0.00033424,5]
[362005138,1747933860050,-420.0,0.00033424,5]
[362005139,1747933860059,-420.0,0.00033424,5]
[362005140,1747933860068,-453.05,0.00033424,5]
[362005141,1747933860077,-420.0,0.00033424,5]
[362005142,1747933860086,-420.0,0.00033424,5]
[362005143,1747933860096,-457.43,0.00033424,5]
[362005144,1747933860106,-420.0,0.00033424,5]
[362005145,1747933860116,-550.44,0.00033424,5]
[362005146,1747933860125,-420.0,0.00033424,5]
[362005147,1747933860135,-420.0,0.00033424,5]
[362005148,1747933860144,-659.52,0.00033424,5]
[362005149,1747933860154,-420.0,0.00033424,5]
[362005150,1747933860163,-420.0,0.00033424,5]
[362005151,1747933860173,-420.0,0.00033424,5]
[362005152,1747933860182,-420.0,0.00033424,5]
[362005153,1747933860192,-420.0,0.00033424,5]
[362005154,1747933860202,-577.96,0.00033424,5]
[362005155,1747933860211,-204.22393548,0.00033424,5]
[362005156,1747933860221,-463.1,0.00033424,5]
[362005157,1747933860230,-547.33,0.00033424,5]
[362005158,1747933860240,-420.0,0.00033424,5]
[362005159,1747933860250,-420.0,0.00033424,5]
[362005160,1747933860260,-420.0,0.00033424,5]
[362005161,1747933860269,-420.0,0.00033424,5]
[362005162,1747933860280,-463.0,0.00033424,5]
[362005163,1747933860290,-151.0,0.00033424,7]
[362005164,1747933860300,-199.4904,0.00033424,7]
[362005165,1747933860309,-599.91,0.00033424,5]
[362005166,1747933860319,-420.0,0.00033424,5]
[362005167,1747933860329,-464.52,0.00033424,5]
[362005168,1747933860339,-319.39788115,0.00033424,5]
[362005169,1747933860349,-486.25,0.00033424,5]
[362005170,1747933860358,-420.0,0.00033424,5]
[362005171,1747933860368,-697.31,0.00033424,5]
[362005172,1747933860378,-420.0,0.00033424,5]
[362005173,1747933860388,-420.0,0.00033424,5]
[362005174,1747933860399,-420.0,0.00033424,5]
[362005175,1747933860408,-420.0,0.00033424,5]
[362005176,1747933860418,-420.0,0.00033424,5]
[362005177,1747933860428,-420.0,0.00033424,5]
[362005178,1747933860438,-420.0,0.00033424,5]
[362005179,1747933860447,-420.0,0.00033424,5]
[362005180,1747933860457,-420.0,0.00033424,5]
[362005181,1747933860466,-420.0,0.00033424,5]
[362005182,1747933860478,-420.0,0.00033424,5]
[362005183,1747933860487,-420.0,0.00033424,5]
[362005184,1747933860497,-420.0,0.00033424,5]
[362005185,1747933860507,-529.35,0.00033424,5]
[362005186,1747933860517,-420.0,0.00033424,5]
[362005187,1747933860527,-420.0,0.00033424,5]
[362005188,1747933860537,-420.0,0.00033424,5]
[362005189,1747933860547,-420.0,0.00033424,5]
[362005190,1747933860556,-420.0,0.00033424,5]
[362005191,1747933860566,-420.0,0.00033424,5]
[362005192,1747933860576,-468.75,0.00033424,5]
[362005193,1747933860586,-420.0,0.00033424,5]
[362005194,1747933860595,-662.62,0.00033424,5]
[362005195,1747933860605,-420.0,0.00033424,5]
[362005196,1747933860615,-420.0,0.00033424,5]
[362005197,1747933860624,-628.66,0.00033424,5]
[362005198,1747933860634,-420.0,0.00033424,5]
[362005199,1747933860643,-420.0,0.00033424,5]
[362005200,1747933860653,-420.0,0.00033424,5]
[362005201,1747933860663,-420.0,0.00033424,5]
[362005202,1747933860673,-420.0,0.00033424,5]
[362005203,1747933860682,-420.0,0.00033424,5]
[362005204,1747933860692,-510.99,0.00033424,5]
[362005205,1747933860702,-420.0,0.00033424,5]
[362005206,1747933860712,-642.96,0.00033424,5]
[362005207,1747933860721,-442.25,0.00033424,5]
[362005208,1747933860731,-420.0,0.00033424,5]
[362005209,1747933860743,-420.0,0.00033424,5]
[362005210,1747933860753,-420.0,0.00033424,5]
[362005211,1747933860763,-420.0,0.00033424,5]
[362005212,1747933860773,-420.0,0.00033424,5]
[362005213,1747933860783,-420.0,0.00033424,5]
[362005214,1747933860793,-420.0,0.00033424,5]
[362005215,1747933860802,-469.92,0.00033424,5]
[362005216,1747933860812,-308.56117093,0.00033424,5]
[362005217,1747933860822,-867.63,0.00033424,5]
[362005218,1747933860832,-420.0,0.00033424,5]
[362005219,1747933860841,-589.11,0.00033424,5]
[362005220,1747933860851,-420.0,0.00033424,5]
[362005221,1747933860861,-420.0,0.00033424,5]
[362005222,1747933860870,-420.0,0.00033424,5]
[362005223,1747933860880,-420.0,0.00033424,5]
[362005224,1747933860889,-420.0,0.00033424,5]
[362005225,1747933860900,-466.21,0.00033424,5]
[362005226,1747933860910,-420.0,0.00033424,5]
[362005227,1747933860919,-420.0,0.00033424,5]
[362005228,1747933860928,-420.0,0.00033424,5]
[362005229,1747933860937,-420.0,0.00033424,5]
[362005230,1747933860947,-420.0,0.00033424,5]
[362005231,1747933860957,-420.0,0.00033424,5]
[362005232,1747933860966,-454.28,0.00033424,5]
[362005233,1747933860977,-464.75,0.00033424,5]
[362005234,1747933860987,-420.0,0.00033424,5]
[362005235,1747933860996,-543.11,0.00033424,5]
[362005236,1747933861006,-420.0,0.00033424,5]